[Event "Titled Tuesday Blitz August 09 Early 2022"]
[White "Vargas, Mauricio"]
[Black "Krzywda, Andrzej"]
[WhiteFideId "4404572"]
[BlackFideId "1114565"]
[WhiteElo "2004"]
[BlackElo "2098"]
[Result "0-1"]
[Round "02"]
[TimeControl "180+1"]
[Date "2022.08.09"]
[WhiteClock "0:00:16"]
[BlackClock "0:01:32"]

1. e4 {[%clk 0:03:00]}  c6 {[%clk 0:02:59]} 2. d4 {[%clk 0:02:57]}  d5 {[%clk 0:03:00]} 3. e5 {[%clk 0:02:57]}  Bf5 {[%clk 0:02:59]} 4. g4 {[%clk 0:02:57]}  Bg6 {[%clk 0:02:58]} 5. h4 {[%clk 0:02:57]}  h5 {[%clk 0:02:57]} 6. e6 {[%clk 0:02:57]}  Nf6 {[%clk 0:02:51]} 7. g5 {[%clk 0:02:55]}  Ne4 {[%clk 0:02:48]} 8. exf7+ {[%clk 0:02:53]}  Bxf7 {[%clk 0:02:47]} 9. Bd3 {[%clk 0:02:53]}  c5 {[%clk 0:02:35]} 10. b3 {[%clk 0:02:45]}  Nc6 {[%clk 0:02:32]} 11. Ne2 {[%clk 0:02:44]}  cxd4 {[%clk 0:02:27]} 12. a3 {[%clk 0:02:39]}  e5 {[%clk 0:02:26]} 13. f3 {[%clk 0:02:36]}  Nc5 {[%clk 0:02:18]} 14. Bf5 {[%clk 0:02:32]}  g6 {[%clk 0:02:13]} 15. Bh3 {[%clk 0:02:30]}  Bg7 {[%clk 0:02:13]} 16. O-O {[%clk 0:02:25]}  O-O {[%clk 0:02:13]} 17. Qe1 {[%clk 0:02:20]}  e4 {[%clk 0:02:10]} 18. f4 {[%clk 0:02:08]}  d3 {[%clk 0:02:04]} 19. Nec3 {[%clk 0:01:55]}  dxc2 {[%clk 0:02:04]} 20. Be3 {[%clk 0:01:07]}  Nd3 {[%clk 0:02:00]} 21. Qd2 {[%clk 0:00:56]}  cxb1=Q {[%clk 0:02:00]} 22. Raxb1 {[%clk 0:00:53]}  d4 {[%clk 0:02:00]} 23. Nxe4 {[%clk 0:00:48]}  dxe3 {[%clk 0:02:00]} 24. Qxe3 {[%clk 0:00:44]}  Bd4 {[%clk 0:01:58]} 25. Nf6+ {[%clk 0:00:40]}  Kg7 {[%clk 0:01:58]} 26. Qxd4 {[%clk 0:00:27]}  Qxd4+ {[%clk 0:01:57]} 27. Kg2 {[%clk 0:00:27]}  Nxf4+ {[%clk 0:01:56]} 28. Kh2 {[%clk 0:00:26]}  Qd2+ {[%clk 0:01:52]} 29. Kg3 {[%clk 0:00:21]}  Ne2+ {[%clk 0:01:49]} 30. Kf3 {[%clk 0:00:20]}  Bd5+ {[%clk 0:01:43]} 31. Kf2 {[%clk 0:00:19]}  Ned4+ {[%clk 0:01:40]} 32. Kg1 {[%clk 0:00:18]}  Ne2+ {[%clk 0:01:32]} 33. Kh2 {[%clk 0:00:16]}  Nf4+ {[%clk 0:01:32]} 34. Kg3 {[%clk 0:00:17]}  Qe3+ {[%clk 0:01:32]} 35. Kh2 {[%clk 0:00:16]}  Qxh3+ {[%clk 0:01:32]} 36. Kg1 {[%clk 0:00:16]}  Qg2# {[%clk 0:01:32]} 0-1


[Site "https://www.chess.com"]

[Event "Titled Tuesday Blitz August 09 Early 2022"]
[White "Wagner, Dennis"]
[Black "Malyi, Viacheslav"]
[WhiteFideId "24650684"]
[BlackFideId "14123983"]
[WhiteElo "2355"]
[BlackElo "2190"]
[Result "0-1"]
[Round "02"]
[TimeControl "180+1"]
[Date "2022.08.09"]
[WhiteClock "0:00:02"]
[BlackClock "0:00:02"]

1. e4 {[%clk 0:03:00]}  e5 {[%clk 0:02:52]} 2. Nf3 {[%clk 0:03:01]}  Nc6 {[%clk 0:02:44]} 3. Bc4 {[%clk 0:03:01]}  Bc5 {[%clk 0:02:43]} 4. c3 {[%clk 0:03:00]}  Nf6 {[%clk 0:02:42]} 5. d3 {[%clk 0:03:01]}  d6 {[%clk 0:02:42]} 6. O-O {[%clk 0:03:00]}  a6 {[%clk 0:02:43]} 7. Re1 {[%clk 0:03:00]}  O-O {[%clk 0:02:42]} 8. a4 {[%clk 0:03:01]}  Ba7 {[%clk 0:02:42]} 9. h3 {[%clk 0:02:59]}  h6 {[%clk 0:02:39]} 10. Nbd2 {[%clk 0:02:58]}  Re8 {[%clk 0:02:38]} 11. b4 {[%clk 0:02:58]}  Nh5 {[%clk 0:02:36]} 12. Nf1 {[%clk 0:02:45]}  Qf6 {[%clk 0:02:35]} 13. Ne3 {[%clk 0:02:36]}  Nf4 {[%clk 0:02:30]} 14. Ng4 {[%clk 0:02:35]}  Bxg4 {[%clk 0:02:26]} 15. hxg4 {[%clk 0:02:36]}  Ne7 {[%clk 0:02:23]} 16. d4 {[%clk 0:02:31]}  Neg6 {[%clk 0:02:23]} 17. g3 {[%clk 0:02:27]}  Ne6 {[%clk 0:02:16]} 18. Be3 {[%clk 0:02:12]}  Ngf8 {[%clk 0:02:05]} 19. Kg2 {[%clk 0:01:59]}  Nh7 {[%clk 0:02:04]} 20. dxe5 {[%clk 0:01:14]}  dxe5 {[%clk 0:01:54]} 21. Bxa7 {[%clk 0:01:14]}  Rxa7 {[%clk 0:01:52]} 22. Qd2 {[%clk 0:00:47]}  Nhg5 {[%clk 0:01:45]} 23. Nxg5 {[%clk 0:00:45]}  Nxg5 {[%clk 0:01:44]} 24. Qe3 {[%clk 0:00:44]}  Raa8 {[%clk 0:01:43]} 25. Rad1 {[%clk 0:00:42]}  Rad8 {[%clk 0:01:42]} 26. a5 {[%clk 0:00:41]}  g6 {[%clk 0:01:32]} 27. Bd5 {[%clk 0:00:23]}  c6 {[%clk 0:01:31]} 28. Bb3 {[%clk 0:00:24]}  Kg7 {[%clk 0:01:28]} 29. Rxd8 {[%clk 0:00:19]}  Rxd8 {[%clk 0:01:27]} 30. f4 {[%clk 0:00:20]}  exf4 {[%clk 0:01:23]} 31. gxf4 {[%clk 0:00:21]}  Ne6 {[%clk 0:01:18]} 32. Rf1 {[%clk 0:00:20]}  Qh4 {[%clk 0:01:09]} 33. Bxe6 {[%clk 0:00:19]}  fxe6 {[%clk 0:01:10]} 34. Qg3 {[%clk 0:00:14]}  Rd2+ {[%clk 0:01:06]} 35. Rf2 {[%clk 0:00:15]}  Rxf2+ {[%clk 0:00:48]} 36. Kxf2 {[%clk 0:00:16]}  Qh1 {[%clk 0:00:47]} 37. f5 {[%clk 0:00:16]}  Qxe4 {[%clk 0:00:34]} 38. Qc7+ {[%clk 0:00:16]}  Kf6 {[%clk 0:00:33]} 39. Qd8+ {[%clk 0:00:15]}  Ke5 {[%clk 0:00:31]} 40. f6 {[%clk 0:00:05]}  Qc2+ {[%clk 0:00:14]} 41. Kf1 {[%clk 0:00:03]}  Qc1+ {[%clk 0:00:13]} 42. Ke2 {[%clk 0:00:03]}  Qc2+ {[%clk 0:00:13]} 43. Kf1 {[%clk 0:00:02]}  Qc1+ {[%clk 0:00:13]} 44. Kg2 {[%clk 0:00:02]}  Qc2+ {[%clk 0:00:13]} 45. Kh3 {[%clk 0:00:02]}  Qxc3+ {[%clk 0:00:13]} 46. Kh4 {[%clk 0:00:03]}  Qe3 {[%clk 0:00:10]} 47. Qc7+ {[%clk 0:00:01]}  Kxf6 {[%clk 0:00:09]} 48. Qd8+ {[%clk 0:00:02]}  Ke5 {[%clk 0:00:09]} 49. Qh8+ {[%clk 0:00:02]}  Ke4 {[%clk 0:00:08]} 50. Qf6 {[%clk 0:00:02]}  Qf4 {[%clk 0:00:03]} 51. Qxe6+ {[%clk 0:00:02]}  Kf3 {[%clk 0:00:03]} 52. Qxg6 {[%clk 0:00:02]}  Qh2# {[%clk 0:00:02]} 0-1


[Site "https://www.chess.com"]

[Event "Titled Tuesday Blitz August 09 Early 2022"]
[White "Walker, Powell"]
[Black "Menezes, Christoph"]
[WhiteFideId "2097184"]
[BlackFideId "1617001"]
[WhiteElo "2190"]
[BlackElo "2368"]
[Result "0-1"]
[Round "02"]
[TimeControl "180+1"]
[Date "2022.08.09"]
[WhiteClock "0:00:10"]
[BlackClock "0:01:10"]

1. d4 {[%clk 0:03:00]}  d5 {[%clk 0:03:00]} 2. Bf4 {[%clk 0:02:59]}  Nf6 {[%clk 0:02:59]} 3. e3 {[%clk 0:02:57]}  c5 {[%clk 0:02:59]} 4. c3 {[%clk 0:02:56]}  Nc6 {[%clk 0:03:00]} 5. Nf3 {[%clk 0:02:55]}  cxd4 {[%clk 0:03:00]} 6. exd4 {[%clk 0:02:54]}  Bf5 {[%clk 0:03:01]} 7. Bd3 {[%clk 0:02:52]}  Bxd3 {[%clk 0:02:59]} 8. Qxd3 {[%clk 0:02:53]}  e6 {[%clk 0:03:00]} 9. Nbd2 {[%clk 0:02:53]}  Bd6 {[%clk 0:03:00]} 10. Bg3 {[%clk 0:02:52]}  O-O {[%clk 0:02:57]} 11. O-O {[%clk 0:02:52]}  Nh5 {[%clk 0:02:50]} 12. Rfe1 {[%clk 0:02:50]}  Nxg3 {[%clk 0:02:43]} 13. hxg3 {[%clk 0:02:51]}  Qc7 {[%clk 0:02:42]} 14. Re2 {[%clk 0:02:41]}  Rfe8 {[%clk 0:02:41]} 15. Rae1 {[%clk 0:02:40]}  Rab8 {[%clk 0:02:36]} 16. Ne5 {[%clk 0:02:39]}  Nxe5 {[%clk 0:02:27]} 17. dxe5 {[%clk 0:02:38]}  Bf8 {[%clk 0:02:28]} 18. Nf3 {[%clk 0:02:34]}  b5 {[%clk 0:02:27]} 19. a3 {[%clk 0:02:32]}  Qc4 {[%clk 0:02:17]} 20. Qe3 {[%clk 0:02:16]}  a5 {[%clk 0:02:15]} 21. Nd2 {[%clk 0:02:13]}  Qc5 {[%clk 0:02:11]} 22. Qxc5 {[%clk 0:02:06]}  Bxc5 {[%clk 0:02:12]} 23. Nb3 {[%clk 0:02:05]}  Bb6 {[%clk 0:02:10]} 24. Rc1 {[%clk 0:01:57]}  Rec8 {[%clk 0:02:09]} 25. Rec2 {[%clk 0:01:56]}  f6 {[%clk 0:02:00]} 26. exf6 {[%clk 0:01:49]}  gxf6 {[%clk 0:02:01]} 27. Nd4 {[%clk 0:01:47]}  Kf7 {[%clk 0:01:58]} 28. Nxb5 {[%clk 0:01:45]}  Bxf2+ {[%clk 0:01:58]} 29. Kxf2 {[%clk 0:01:46]}  Rxb5 {[%clk 0:01:58]} 30. Rh1 {[%clk 0:01:43]}  Kg6 {[%clk 0:01:57]} 31. Re2 {[%clk 0:01:41]}  e5 {[%clk 0:01:54]} 32. Rd2 {[%clk 0:01:41]}  Rcb8 {[%clk 0:01:54]} 33. b4 {[%clk 0:01:39]}  axb4 {[%clk 0:01:53]} 34. cxb4 {[%clk 0:01:39]}  Ra8 {[%clk 0:01:49]} 35. Rd3 {[%clk 0:01:37]}  d4 {[%clk 0:01:46]} 36. g4 {[%clk 0:01:29]}  Rc8 {[%clk 0:01:45]} 37. Rb1 {[%clk 0:01:20]}  Rc4 {[%clk 0:01:36]} 38. Kf3 {[%clk 0:01:07]}  f5 {[%clk 0:01:32]} 39. gxf5+ {[%clk 0:01:05]}  Kxf5 {[%clk 0:01:33]} 40. g4+ {[%clk 0:01:04]}  Ke6 {[%clk 0:01:31]} 41. Rh1 {[%clk 0:01:02]}  Kd5 {[%clk 0:01:28]} 42. Rh5 {[%clk 0:00:55]}  Rc3 {[%clk 0:01:22]} 43. Rxc3 {[%clk 0:00:54]}  dxc3 {[%clk 0:01:23]} 44. Ke3 {[%clk 0:00:48]}  Kc4 {[%clk 0:01:23]} 45. Rxh7 {[%clk 0:00:47]}  Kb3 {[%clk 0:01:17]} 46. Rc7 {[%clk 0:00:44]}  c2 {[%clk 0:01:14]} 47. Kd3 {[%clk 0:00:15]}  Rd5+ {[%clk 0:01:09]} 48. Ke4 {[%clk 0:00:15]}  Rd4+ {[%clk 0:01:08]} 49. Kxe5 {[%clk 0:00:14]}  Rc4 {[%clk 0:01:09]} 50. Rxc4 {[%clk 0:00:11]}  Kxc4 {[%clk 0:01:10]} 51. Kf6 {[%clk 0:00:11]}  c1=Q {[%clk 0:01:10]} 52. g5 {[%clk 0:00:12]}  Qf4+ {[%clk 0:01:10]} 53. Kg6 {[%clk 0:00:11]}  Kd5 {[%clk 0:01:10]} 54. Kh6 {[%clk 0:00:10]}  Ke6 {[%clk 0:01:11]} 55. b5 {[%clk 0:00:10]}  Kf5 {[%clk 0:01:10]} 0-1


[Site "https://www.chess.com"]

[Event "Titled Tuesday Blitz August 09 Early 2022"]
[White "Xu, Yi"]
[Black "Zenin, Dmitry"]
[WhiteFideId "8605564"]
[BlackFideId "4127897"]
[WhiteElo "2471"]
[BlackElo "2215"]
[Result "1-0"]
[Round "02"]
[TimeControl "180+1"]
[Date "2022.08.09"]
[WhiteClock "0:01:36"]
[BlackClock "0:00:41"]

1. e4 {[%clk 0:03:00]}  g6 {[%clk 0:02:59]} 2. d4 {[%clk 0:03:00]}  Bg7 {[%clk 0:02:59]} 3. Nc3 {[%clk 0:03:00]}  d6 {[%clk 0:02:58]} 4. f4 {[%clk 0:03:00]}  a6 {[%clk 0:02:57]} 5. Nf3 {[%clk 0:03:00]}  b5 {[%clk 0:02:57]} 6. Bd3 {[%clk 0:03:00]}  Nd7 {[%clk 0:02:51]} 7. e5 {[%clk 0:02:58]}  Bb7 {[%clk 0:02:47]} 8. Be4 {[%clk 0:02:56]}  Bxe4 {[%clk 0:02:42]} 9. Nxe4 {[%clk 0:02:56]}  Nh6 {[%clk 0:02:42]} 10. Qe2 {[%clk 0:02:43]}  O-O {[%clk 0:02:39]} 11. O-O {[%clk 0:02:31]}  d5 {[%clk 0:02:28]} 12. Neg5 {[%clk 0:02:22]}  e6 {[%clk 0:02:27]} 13. c3 {[%clk 0:02:21]}  c5 {[%clk 0:02:24]} 14. Be3 {[%clk 0:02:21]}  Nf5 {[%clk 0:02:15]} 15. Bf2 {[%clk 0:02:21]}  h6 {[%clk 0:02:15]} 16. Nh3 {[%clk 0:02:21]}  cxd4 {[%clk 0:01:58]} 17. cxd4 {[%clk 0:02:20]}  h5 {[%clk 0:01:56]} 18. Nhg5 {[%clk 0:02:20]}  Qb6 {[%clk 0:01:46]} 19. h3 {[%clk 0:02:18]}  Nh6 {[%clk 0:01:39]} 20. Nh4 {[%clk 0:02:06]}  Rac8 {[%clk 0:01:17]} 21. g4 {[%clk 0:02:02]}  hxg4 {[%clk 0:01:16]} 22. hxg4 {[%clk 0:02:03]}  Qc6 {[%clk 0:01:13]} 23. f5 {[%clk 0:01:53]}  exf5 {[%clk 0:01:11]} 24. gxf5 {[%clk 0:01:53]}  gxf5 {[%clk 0:01:08]} 25. Qh5 {[%clk 0:01:45]}  f6 {[%clk 0:00:41]} 26. Nxf5 {[%clk 0:01:36]} 1-0


[Site "https://www.chess.com"]

[Event "Titled Tuesday Blitz August 09 Early 2022"]
[White "Yaksin, Oleg"]
[Black "Bristy, Mukherjee"]
[WhiteFideId "24105880"]
[BlackFideId "25077325"]
[WhiteElo "2256"]
[BlackElo "1661"]
[Result "1-0"]
[Round "02"]
[TimeControl "180+1"]
[Date "2022.08.09"]
[WhiteClock "0:00:07"]
[BlackClock "0:00:03"]

1. d4 {[%clk 0:02:56]}  f5 {[%clk 0:02:57]} 2. c4 {[%clk 0:02:56]}  Nf6 {[%clk 0:02:57]} 3. g3 {[%clk 0:02:55]}  e6 {[%clk 0:02:56]} 4. Bg2 {[%clk 0:02:56]}  Be7 {[%clk 0:02:57]} 5. Nf3 {[%clk 0:02:56]}  d6 {[%clk 0:02:57]} 6. O-O {[%clk 0:02:56]}  O-O {[%clk 0:02:58]} 7. Nc3 {[%clk 0:02:56]}  Qe8 {[%clk 0:02:58]} 8. b3 {[%clk 0:02:55]}  Nbd7 {[%clk 0:02:43]} 9. Bb2 {[%clk 0:02:55]}  Bd8 {[%clk 0:02:17]} 10. Re1 {[%clk 0:02:51]}  e5 {[%clk 0:02:17]} 11. e4 {[%clk 0:02:35]}  f4 {[%clk 0:02:02]} 12. dxe5 {[%clk 0:02:22]}  dxe5 {[%clk 0:02:00]} 13. gxf4 {[%clk 0:02:21]}  exf4 {[%clk 0:01:59]} 14. e5 {[%clk 0:02:22]}  Ng4 {[%clk 0:01:57]} 15. e6 {[%clk 0:02:06]}  Ndf6 {[%clk 0:01:52]} 16. Nd5 {[%clk 0:01:55]}  Nxd5 {[%clk 0:01:45]} 17. cxd5 {[%clk 0:01:51]}  Be7 {[%clk 0:01:46]} 18. Rc1 {[%clk 0:01:43]}  Bd6 {[%clk 0:01:36]} 19. h3 {[%clk 0:01:19]}  Nf6 {[%clk 0:01:27]} 20. Be5 {[%clk 0:01:19]}  Qh5 {[%clk 0:01:21]} 21. Qd4 {[%clk 0:01:09]}  b6 {[%clk 0:01:13]} 22. Bxf4 {[%clk 0:00:46]}  Bxf4 {[%clk 0:01:03]} 23. Qxf4 {[%clk 0:00:47]}  Nxd5 {[%clk 0:01:03]} 24. Qg5 {[%clk 0:00:43]}  Qxg5 {[%clk 0:00:19]} 25. Nxg5 {[%clk 0:00:44]}  Bb7 {[%clk 0:00:18]} 26. e7 {[%clk 0:00:28]}  Rfe8 {[%clk 0:00:16]} 27. Bxd5+ {[%clk 0:00:25]}  Bxd5 {[%clk 0:00:16]} 28. Rxc7 {[%clk 0:00:25]}  h6 {[%clk 0:00:16]} 29. Ne6 {[%clk 0:00:24]}  Bxe6 {[%clk 0:00:15]} 30. Rxe6 {[%clk 0:00:24]}  Kf7 {[%clk 0:00:16]} 31. Re3 {[%clk 0:00:23]}  a6 {[%clk 0:00:13]} 32. Rb7 {[%clk 0:00:23]}  Rab8 {[%clk 0:00:13]} 33. Ra7 {[%clk 0:00:19]}  Ra8 {[%clk 0:00:13]} 34. Rd7 {[%clk 0:00:20]}  Rac8 {[%clk 0:00:13]} 35. Kg2 {[%clk 0:00:19]}  Rc6 {[%clk 0:00:12]} 36. a4 {[%clk 0:00:17]}  Re6 {[%clk 0:00:12]} 37. Rxe6 {[%clk 0:00:16]}  Kxe6 {[%clk 0:00:13]} 38. Rb7 {[%clk 0:00:17]}  Kd5 {[%clk 0:00:10]} 39. Rxb6 {[%clk 0:00:17]}  Rxe7 {[%clk 0:00:09]} 40. Rxa6 {[%clk 0:00:17]}  Rb7 {[%clk 0:00:09]} 41. Ra5+ {[%clk 0:00:17]}  Kc6 {[%clk 0:00:09]} 42. Rb5 {[%clk 0:00:16]}  Rd7 {[%clk 0:00:06]} 43. h4 {[%clk 0:00:11]}  Rd4 {[%clk 0:00:05]} 44. h5 {[%clk 0:00:12]}  Rd3 {[%clk 0:00:04]} 45. f3 {[%clk 0:00:12]}  Rc3 {[%clk 0:00:04]} 46. Kg3 {[%clk 0:00:12]}  Rd3 {[%clk 0:00:04]} 47. Kf4 {[%clk 0:00:11]}  Rd1 {[%clk 0:00:04]} 48. Kf5 {[%clk 0:00:11]}  Rg1 {[%clk 0:00:05]} 49. f4 {[%clk 0:00:12]}  Rg3 {[%clk 0:00:04]} 50. Rb8 {[%clk 0:00:11]}  Rg2 {[%clk 0:00:04]} 51. b4 {[%clk 0:00:10]}  Kc7 {[%clk 0:00:03]} 52. Rb5 {[%clk 0:00:10]}  Rh2 {[%clk 0:00:03]} 53. Kg6 {[%clk 0:00:09]}  Rg2+ {[%clk 0:00:03]} 54. Kh7 {[%clk 0:00:09]}  Kc6 {[%clk 0:00:03]} 55. Rb8 {[%clk 0:00:08]}  Rg4 {[%clk 0:00:03]} 56. b5+ {[%clk 0:00:08]}  Kc7 {[%clk 0:00:03]} 57. Ra8 {[%clk 0:00:08]}  Rxf4 {[%clk 0:00:03]} 58. Kxg7 {[%clk 0:00:08]}  Rf5 {[%clk 0:00:01]} 59. Kxh6 {[%clk 0:00:07]}  Rf6+ {[%clk 0:00:02]} 60. Kg7 {[%clk 0:00:07]}  Rb6 {[%clk 0:00:03]} 61. Ra7+ {[%clk 0:00:07]}  Kb8 {[%clk 0:00:03]} 62. Ra6 {[%clk 0:00:07]}  Re6 {[%clk 0:00:03]} 63. Rxe6 {[%clk 0:00:07]} 1-0


[Site "https://www.chess.com"]

[Event "Titled Tuesday Blitz August 09 Early 2022"]
[White "Yurovskykh, Oleksandr"]
[Black "Pinero Rodriguez, Carlos Jose"]
[WhiteFideId "14134020"]
[BlackFideId "3901726"]
[WhiteElo "2292"]
[BlackElo "2053"]
[Result "1-0"]
[Round "02"]
[TimeControl "180+1"]
[Date "2022.08.09"]
[WhiteClock "0:00:07"]
[BlackClock "0:00:01"]

1. d4 {[%clk 0:03:00]}  d5 {[%clk 0:02:59]} 2. Bf4 {[%clk 0:02:58]}  Bf5 {[%clk 0:02:57]} 3. c4 {[%clk 0:02:58]}  dxc4 {[%clk 0:02:51]} 4. Nc3 {[%clk 0:02:57]}  c6 {[%clk 0:02:46]} 5. e4 {[%clk 0:02:57]}  Bg6 {[%clk 0:02:45]} 6. Bxc4 {[%clk 0:02:58]}  e6 {[%clk 0:02:45]} 7. f3 {[%clk 0:02:58]}  Bb4 {[%clk 0:02:43]} 8. Ne2 {[%clk 0:02:56]}  Nf6 {[%clk 0:02:39]} 9. O-O {[%clk 0:02:55]}  O-O {[%clk 0:02:38]} 10. a3 {[%clk 0:02:55]}  Ba5 {[%clk 0:02:38]} 11. b4 {[%clk 0:02:51]}  Bc7 {[%clk 0:02:37]} 12. Be3 {[%clk 0:02:46]}  Nbd7 {[%clk 0:02:30]} 13. Qb3 {[%clk 0:02:34]}  Nb6 {[%clk 0:02:25]} 14. Bd3 {[%clk 0:02:34]}  e5 {[%clk 0:02:20]} 15. Rad1 {[%clk 0:02:30]}  exd4 {[%clk 0:02:18]} 16. Bxd4 {[%clk 0:02:18]}  Qb8 {[%clk 0:02:01]} 17. h3 {[%clk 0:02:09]}  Bh2+ {[%clk 0:02:00]} 18. Kh1 {[%clk 0:02:09]}  Be5 {[%clk 0:02:01]} 19. Bg1 {[%clk 0:02:04]}  Nh5 {[%clk 0:01:52]} 20. a4 {[%clk 0:01:59]}  Nd7 {[%clk 0:01:43]} 21. Bc4 {[%clk 0:01:57]}  Nb6 {[%clk 0:01:33]} 22. Bd3 {[%clk 0:01:41]}  Nd7 {[%clk 0:01:31]} 23. Bb1 {[%clk 0:01:30]}  Qc7 {[%clk 0:01:08]} 24. Rd3 {[%clk 0:01:13]}  Rad8 {[%clk 0:01:07]} 25. Rfd1 {[%clk 0:01:13]}  Ng3+ {[%clk 0:00:58]} 26. Nxg3 {[%clk 0:01:12]}  Bxg3 {[%clk 0:00:59]} 27. a5 {[%clk 0:00:58]}  Ne5 {[%clk 0:00:59]} 28. Rxd8 {[%clk 0:00:56]}  Rxd8 {[%clk 0:00:59]} 29. Rxd8+ {[%clk 0:00:56]}  Qxd8 {[%clk 0:01:00]} 30. Bxa7 {[%clk 0:00:53]}  Qd2 {[%clk 0:00:56]} 31. Qd1 {[%clk 0:00:50]}  Qxd1+ {[%clk 0:00:47]} 32. Nxd1 {[%clk 0:00:51]}  Be1 {[%clk 0:00:47]} 33. Bc5 {[%clk 0:00:49]}  Nd7 {[%clk 0:00:45]} 34. Bd6 {[%clk 0:00:49]}  f6 {[%clk 0:00:37]} 35. Kg1 {[%clk 0:00:27]}  Bf7 {[%clk 0:00:36]} 36. Kf1 {[%clk 0:00:26]}  Bd2 {[%clk 0:00:34]} 37. Ke2 {[%clk 0:00:26]}  Bc1 {[%clk 0:00:29]} 38. Bd3 {[%clk 0:00:23]}  Bb3 {[%clk 0:00:24]} 39. Ne3 {[%clk 0:00:22]}  Bxe3 {[%clk 0:00:14]} 40. Kxe3 {[%clk 0:00:23]}  Kf7 {[%clk 0:00:13]} 41. f4 {[%clk 0:00:18]}  Ke6 {[%clk 0:00:13]} 42. Bc7 {[%clk 0:00:18]}  c5 {[%clk 0:00:11]} 43. f5+ {[%clk 0:00:14]}  Ke7 {[%clk 0:00:11]} 44. b5 {[%clk 0:00:10]}  c4 {[%clk 0:00:09]} 45. Bb1 {[%clk 0:00:10]}  Nc5 {[%clk 0:00:09]} 46. Kd4 {[%clk 0:00:08]}  Na4 {[%clk 0:00:07]} 47. Bb6 {[%clk 0:00:06]}  Nxb6 {[%clk 0:00:07]} 48. axb6 {[%clk 0:00:06]}  Kd6 {[%clk 0:00:07]} 49. g4 {[%clk 0:00:04]}  g6 {[%clk 0:00:07]} 50. fxg6 {[%clk 0:00:04]}  hxg6 {[%clk 0:00:07]} 51. h4 {[%clk 0:00:04]}  Ke6 {[%clk 0:00:06]} 52. h5 {[%clk 0:00:05]}  gxh5 {[%clk 0:00:07]} 53. gxh5 {[%clk 0:00:06]}  Kf7 {[%clk 0:00:08]} 54. e5 {[%clk 0:00:06]}  fxe5+ {[%clk 0:00:08]} 55. Kxe5 {[%clk 0:00:06]}  Kg7 {[%clk 0:00:08]} 56. Kd4 {[%clk 0:00:05]}  Kh6 {[%clk 0:00:09]} 57. Be4 {[%clk 0:00:06]}  Kxh5 {[%clk 0:00:07]} 58. Bxb7 {[%clk 0:00:07]}  Ba4 {[%clk 0:00:06]} 59. Bc6 {[%clk 0:00:06]}  c3 {[%clk 0:00:05]} 60. Kxc3 {[%clk 0:00:06]}  Bd1 {[%clk 0:00:06]} 61. b7 {[%clk 0:00:07]}  Bg4 {[%clk 0:00:06]} 62. b8=Q {[%clk 0:00:08]}  Kg5 {[%clk 0:00:01]} 63. Qg3 {[%clk 0:00:07]} 1-0


[Site "https://www.chess.com"]

[Event "Titled Tuesday Blitz August 09 Early 2022"]
[White "Zainullina, Nataliya"]
[Black "Balint, Vilmos"]
[WhiteFideId "4145488"]
[BlackFideId "718050"]
[WhiteElo "2055"]
[BlackElo "2059"]
[Result "1/2-1/2"]
[Round "02"]
[TimeControl "180+1"]
[Date "2022.08.09"]
[WhiteClock "0:01:43"]
[BlackClock "0:02:00"]

1. Nf3 {[%clk 0:03:00]}  f5 {[%clk 0:02:58]} 2. g3 {[%clk 0:02:59]}  Nf6 {[%clk 0:02:58]} 3. Bg2 {[%clk 0:03:00]}  g6 {[%clk 0:02:59]} 4. O-O {[%clk 0:03:00]}  Bg7 {[%clk 0:03:00]} 5. d4 {[%clk 0:02:57]}  O-O {[%clk 0:03:01]} 6. b3 {[%clk 0:02:58]}  d6 {[%clk 0:03:01]} 7. Bb2 {[%clk 0:02:58]}  c6 {[%clk 0:03:01]} 8. c4 {[%clk 0:02:59]}  h6 {[%clk 0:03:00]} 9. Nbd2 {[%clk 0:02:59]}  Kh7 {[%clk 0:03:01]} 10. e3 {[%clk 0:02:59]}  Nbd7 {[%clk 0:03:01]} 11. Qc2 {[%clk 0:03:00]}  Qe8 {[%clk 0:03:01]} 12. e4 {[%clk 0:03:00]}  fxe4 {[%clk 0:03:01]} 13. Nxe4 {[%clk 0:03:00]}  Nxe4 {[%clk 0:03:01]} 14. Qxe4 {[%clk 0:03:00]}  Nf6 {[%clk 0:03:01]} 15. Qe2 {[%clk 0:02:54]}  Bg4 {[%clk 0:03:00]} 16. Rfe1 {[%clk 0:02:54]}  Nd7 {[%clk 0:02:58]} 17. Qxe7 {[%clk 0:02:41]}  Bxf3 {[%clk 0:02:52]} 18. Qxe8 {[%clk 0:02:41]}  Raxe8 {[%clk 0:02:47]} 19. Rxe8 {[%clk 0:02:41]}  Rxe8 {[%clk 0:02:43]} 20. Bxf3 {[%clk 0:02:41]}  Nc5 {[%clk 0:02:29]} 21. Rd1 {[%clk 0:01:49]}  Na6 {[%clk 0:02:20]} 22. Ba3 {[%clk 0:01:47]}  Re6 {[%clk 0:02:04]} 23. Bg4 {[%clk 0:01:46]}  Re4 {[%clk 0:02:04]} 24. Bf3 {[%clk 0:01:44]}  Re6 {[%clk 0:02:00]} 25. Bg4 {[%clk 0:01:42]}  Re4 {[%clk 0:02:00]} 26. Bf3 {[%clk 0:01:43]}  Re6 {[%clk 0:02:00]} 1/2-1/2


[Site "https://www.chess.com"]